bitfinex-derivatives/quotes_SOLF0:USTF0_20250206
["timestamp","ask_amount","ask_price","bid_price","bid_amount"]
[1738801254641,3.1309,198.48,198.3,2.9876]
[1738801255046,0.03324609,198.41,198.37,0.03281593]
[1738801257548,0.03324609,198.41,198.37,5.07331593]
[1738801257744,0.03324609,198.41,198.37,0.03281593]
[1738801259252,0.03324609,198.41,198.37,5.07341593]
[1738801259455,3.677,198.53,198.37,0.03281593]
[1738801259752,5.038,198.48,198.42,5.0395]
[1738801260250,3.677,198.53,198.42,5.0395]
[1738801260650,3.677,198.53,198.46,0.03533478]
[1738801260850,5.0378,198.49,198.46,0.03533478]
[1738801261042,3.677,198.53,198.46,0.03533478]
[1738801261244,5.0373,198.51,198.46,0.03533478]
[1738801261450,3.677,198.53,198.46,0.03533478]
[1738801262050,22.05748817,198.6,198.46,0.03533478]
[1738801262252,22.05748817,198.6,198.5,5.0374]
[1738801262648,22.05748817,198.6,198.53,0.03434091]
[1738801263247,22.05748817,198.64,198.53,0.03434091]
[1738801263454,5.0348,198.61,198.53,5.07084091]
[1738801263653,3.0817,198.68,198.53,0.03434091]
[1738801264049,3.0817,198.68,198.51,3.2192]
[1738801264355,3.0817,198.68,198.59,0.03765609]
[1738801264850,3.0817,198.68,198.59,5.07285609]
[1738801265055,22.74038817,198.74,198.59,0.03765609]
[1738801265351,22.74038817,198.74,198.54,22.05748817]
[1738801265352,25.90268817,198.74,198.54,22.05748817]
[1738801265556,5.032,198.72,198.65,0.03768532]
[1738801265746,25.21978817,198.74,198.65,0.03768532]
[1738801266152,22.05748817,198.7,198.52,1.513]
[1738801266646,5.033,198.68,198.57,5.0356]
[1738801266849,5.033,198.68,198.52,1.513]
[1738801267055,22.05748817,198.7,198.52,1.513]
[1738801267249,5.0335,198.66,198.59,0.03237065]
[1738801267453,0.0383032,198.63,198.59,0.03237065]
[1738801267853,5.0346,198.62,198.59,0.03237065]
[1738801268151,0.0383032,198.63,198.59,0.03237065]
[1738801271655,5.0725032,198.63,198.59,0.03237065]
[1738801272156,0.0383032,198.63,198.59,0.03237065]
[1738801273153,0.0383032,198.63,198.62,5.0344]
[1738801273456,0.0383032,198.63,198.59,0.03237065]
[1738801275557,0.0383032,198.63,198.62,5.0344]
[1738801275858,0.0383032,198.63,198.59,0.03237065]
[1738801275859,22.05748817,198.78,198.6,22.05748817]
[1738801276062,5.0312,198.75,198.69,5.0326]
[1738801276258,22.05748817,198.82,198.64,22.05748817]
[1738801276761,5.0306,198.77,198.71,5.032]
[1738801276964,5.0306,198.77,198.71,5.06749028]
[1738801277260,5.0303,198.79,198.73,5.0316]
[1738801277459,25.11508817,198.86,198.68,22.05748817]
[1738801277657,25.11508817,198.86,198.74,0.03523306]
[1738801277850,5.0296,198.82,198.75,5.0311]
[1738801278050,5.0296,198.82,198.78,0.03606568]
[1738801278457,5.0299,198.8,198.78,0.03606568]
[1738801278658,25.11508817,198.86,198.78,0.03606568]
[1738801279260,5.0295,198.82,198.78,0.03606568]
[1738801279759,5.03,198.8,198.78,0.03606568]
[1738801280263,30.14368817,198.86,198.78,0.03606568]
[1738801280458,25.11508817,198.86,198.78,0.03606568]
[1738801281058,5.0289,198.84,198.78,0.03606568]
[1738801281464,25.11508817,198.86,198.78,0.03606568]
[1738801281659,0.9244893,198.85,198.78,0.03606568]
[1738801281860,25.11508817,198.86,198.78,0.03606568]
[1738801282559,0.92449714,198.85,198.78,0.03606568]
[1738801282754,25.11508817,198.86,198.78,0.03606568]
[1738801282963,5.0294,198.82,198.78,0.03606568]
[1738801283261,25.11508817,198.86,198.78,0.03606568]
[1738801284061,5.0299,198.81,198.78,0.03606568]
[1738801284366,25.11508817,198.86,198.78,0.03606568]
[1738801284558,5.0296,198.82,198.78,0.03606568]
[1738801284865,25.11508817,198.86,198.78,0.03606568]
[1738801285163,0.92454046,198.85,198.78,0.03606568]
[1738801285362,25.11508817,198.86,198.78,0.03606568]
[1738801285565,0.92454427,198.85,198.78,0.03606568]
[1738801285862,5.0301,198.79,198.78,0.03606568]
[1738801286364,3.92,198.79,198.61,3.0743]
[1738801286554,22.05748817,198.76,198.61,3.0743]
[1738801287259,5.0323,198.71,198.63,5.034]
[1738801287457,0.03299181,198.7,198.67,0.03305106]
[1738801288463,25.10588817,198.84,198.67,0.03305106]
[1738801288663,25.10588817,198.84,198.64,22.05748817]
[1738801289161,22.05748817,198.8,198.64,22.05748817]
[1738801289465,3.94,198.79,198.64,22.05748817]
[1738801289662,5.0322,198.71,198.7,0.03175318]
[1738801289959,22.05748817,198.72,198.56,22.05748817]
[1738801290163,3.0452,198.7,198.52,22.05748817]
[1738801290365,3.94,198.69,198.52,22.05748817]
[1738801290565,22.05748817,198.68,198.52,22.05748817]
[1738801290762,22.05748817,198.68,198.51,3.1336]
[1738801290965,0.92534542,198.67,198.51,3.1336]
[1738801291262,5.035,198.6,198.58,0.03708696]
[1738801291463,0.03533879,198.62,198.48,23.67168817]
[1738801291661,5.0355,198.58,198.49,5.0377]
[1738801291865,22.05748817,198.64,198.48,1.6142]
[1738801292471,5.036,198.56,198.48,6.6521]
[1738801292870,5.036,198.56,198.54,0.03469995]
[1738801293165,5.0354,198.59,198.51,5.0372]
[1738801293465,3.94,198.69,198.48,1.6142]
[1738801293466,0.03732694,198.57,198.53,0.03516553]
[1738801293871,0.92522516,198.69,198.48,23.67168817]
[1738801294074,0.03877356,198.57,198.53,0.03325753]
[1738801294469,22.05748817,198.66,198.52,5.0368]
[1738801294773,3.0452,198.7,198.52,5.0368]
[1738801294774,0.03181398,198.57,198.53,0.0353409]
[1738801295169,25.10268817,198.7,198.52,22.05748817]
[1738801295170,3.0452,198.7,198.52,22.05748817]
[1738801295370,3.0452,198.7,198.56,22.05748817]
[1738801295676,3.0452,198.7,198.57,4.644]
[1738801295868,5.0329,198.69,198.62,5.0344]
[1738801296366,0.6098,198.72,198.57,4.644]
[1738801296571,0.03825559,198.67,198.64,0.03766452]
[1738801296771,5.0334,198.66,198.64,0.03766452]
[1738801297265,0.03825559,198.67,198.64,0.03766452]
[1738801298276,5.035,198.6,198.53,5.0366]
[1738801298470,0.03825559,198.67,198.53,5.0366]
[1738801298671,0.92530741,198.68,198.53,5.0366]
[1738801299376,5.0345,198.62,198.52,5.037]
[1738801299673,0.03391717,198.62,198.52,5.037]
[1738801300070,5.0349,198.61,198.55,0.03275106]
[1738801300472,0.03391717,198.62,198.55,0.03275106]
[1738801300775,5.0356,198.58,198.55,0.03275106]
[1738801300976,0.03391717,198.62,198.55,0.03275106]
[1738801301170,5.036,198.56,198.55,0.03275106]
[1738801301377,1.6179,198.61,198.55,0.03275106]
[1738801301567,5.0352,198.6,198.55,0.03275106]
[1738801301772,0.03749808,198.6,198.55,0.03275106]
[1738801302777,5.0357,198.57,198.55,0.03275106]
[1738801303167,0.03749808,198.6,198.55,0.03275106]
[1738801303368,5.07249808,198.6,198.55,0.03275106]
[1738801303774,0.03749808,198.6,198.55,0.03275106]
[1738801305475,5.0355,198.58,198.55,0.03275106]
[1738801306177,5.036,198.56,198.55,0.03275106]
[1738801307078,5.0356,198.58,198.55,0.03275106]
[1738801307282,0.03749808,198.6,198.55,0.03275106]
[1738801308281,5.036,198.56,198.55,0.03275106]
[1738801310582,5.036,198.56,198.46,1.5429]
[1738801310583,22.05748817,198.58,198.36,22.05748817]
[1738801310882,22.05748817,198.51,198.37,1.598]
[1738801311278,3.94,198.54,198.37,1.598]
[1738801311682,0.03700641,198.49,198.46,0.03402005]
[1738801312379,22.05748817,198.47,198.37,1.598]
[1738801312584,5.0406,198.38,198.34,27.41961102]
[1738801312781,22.05748817,198.43,198.34,27.41961102]
[1738801313084,5.0417,198.34,198.25,11.89870275]
[1738801313284,22.05748817,198.39,198.25,6.85490275]
[1738801313688,0.03603039,198.34,198.3,0.03758953]
[1738801314282,5.0421,198.32,198.3,0.03758953]
[1738801314583,0.03603039,198.34,198.3,0.03758953]
[1738801314883,15.16,198.57,198.3,0.03758953]
[1738801314884,22.05748817,198.47,198.3,0.03758953]
[1738801315285,22.05748817,198.47,198.33,5.0418]
[1738801315479,22.05748817,198.47,198.34,3.0669]
[1738801315888,22.05748817,198.47,198.34,8.1082]
[1738801316184,0.03367065,198.42,198.38,0.0374182]
[1738801316985,5.0398,198.41,198.38,0.0374182]
[1738801317588,0.03367065,198.42,198.38,0.0374182]
[1738801318385,5.07327065,198.42,198.38,0.0374182]
[1738801318882,0.03367065,198.42,198.38,0.0374182]
[1738801319384,22.05748817,198.55,198.41,22.05748817]
[1738801320288,5.038,198.48,198.41,22.05748817]
[1738801320589,0.03370521,198.5,198.46,0.03726342]
[1738801320988,22.05748817,198.55,198.37,22.05748817]
[1738801321283,0.0358672,198.5,198.46,0.0360277]
[1738801321485,22.05748817,198.47,198.34,3.0669]
[1738801322190,22.05748817,198.51,198.34,3.0669]
[1738801322693,22.05748817,198.51,198.41,0.03609496]
[1738801322887,0.03547054,198.44,198.41,0.03609496]
[1738801323092,22.05748817,198.51,198.41,0.03609496]
[1738801323391,0.03407447,198.44,198.41,0.03609496]
[1738801323594,22.05748817,198.51,198.41,0.03609496]
[1738801323794,0.03777196,198.44,198.41,0.03609496]
[1738801324195,22.05748817,198.51,198.41,0.03609496]
[1738801324398,0.0359876,198.44,198.41,0.03609496]
[1738801324796,5.0387,198.46,198.41,0.03609496]
[1738801324997,0.03309616,198.44,198.41,0.03609496]
[1738801325190,20.76792073,198.69,198.43,22.05748817]
[1738801325387,0.92556621,198.68,198.5,22.05748817]
[1738801325600,20.76792073,198.69,198.54,22.05748817]
[1738801325897,5.0332,198.67,198.54,22.05748817]
[1738801326094,20.76792073,198.68,198.51,3.124]
[1738801326393,0.03389747,198.62,198.59,0.03664578]
[1738801327298,20.76792073,198.68,198.59,0.03664578]
[1738801327800,5.0334,198.67,198.59,5.07174578]
[1738801328298,0.03532273,198.65,198.59,5.07174578]
[1738801328699,0.03532273,198.65,198.63,5.0341]
[1738801328895,0.03532273,198.65,198.59,0.03664578]
[1738801331498,0.03532273,198.65,198.61,5.0346]
[1738801331695,0.03532273,198.65,198.59,0.03664578]
[1738801332200,0.03532273,198.65,198.61,5.0347]
[1738801332398,0.03532273,198.65,198.59,1.63684578]
[1738801332598,3.98,198.76,198.59,1.63684578]
[1738801332999,3.98,198.76,198.59,1.6002]
[1738801333995,3.98,198.76,198.66,0.03615455]
[1738801334200,5.0332,198.68,198.66,0.03615455]
[1738801335398,1.5009,198.84,198.66,0.03615455]
[1738801335594,3.96,198.78,198.66,0.03615455]
[1738801335802,3.96,198.78,198.59,1.6002]
[1738801335999,5.0319,198.72,198.7,0.03565167]
[1738801336796,3.96,198.78,198.7,0.03565167]
[1738801336999,5.0322,198.71,198.7,0.03565167]
[1738801342211,25.99748817,198.77,198.7,0.03565167]
[1738801342601,5.0322,198.71,198.7,0.03565167]
[1738801342801,25.99748817,198.77,198.7,0.03565167]
[1738801343108,5.0321,198.72,198.7,0.03565167]
[1738801344508,25.99748817,198.77,198.7,0.03565167]
[1738801344509,5.0313,198.75,198.7,0.03565167]
[1738801344705,1.53,198.79,198.7,0.03565167]
[1738801345014,5.0302,198.79,198.7,0.03565167]
[1738801346008,22.05748817,198.81,198.72,5.0318]
[1738801346009,5.0304,198.78,198.72,5.0318]
[1738801346208,22.05748817,198.81,198.63,2.9869]
[1738801346408,22.05748817,198.81,198.73,0.0364996]
[1738801346609,5.0309,198.76,198.73,0.0364996]
[1738801347010,1.5456,198.86,198.73,0.0364996]
[1738801347211,5.0293,198.83,198.71,1.5235]
[1738801347513,5.0293,198.83,198.78,0.03423201]
[1738801347703,1.5456,198.86,198.78,0.03423201]
[1738801347907,5.029,198.84,198.78,0.03423201]
[1738801348110,3.94,198.88,198.78,0.03423201]
[1738801348602,5.0286,198.85,198.78,0.03423201]
[1738801348807,3.94,198.88,198.78,0.03423201]
[1738801349013,22.05748817,198.85,198.78,0.03423201]
[1738801349904,5.0296,198.82,198.78,0.03423201]
[1738801350110,22.05748817,198.85,198.78,0.03423201]
[1738801350411,5.0299,198.8,198.78,0.03423201]
[1738801350611,22.05748817,198.85,198.78,0.03423201]
[1738801351309,5.0291,198.83,198.78,0.03423201]
[1738801351511,22.05748817,198.85,198.78,0.03423201]
[1738801352711,1.4691,198.84,198.78,0.03423201]
[1738801353712,5.0295,198.82,198.78,0.03423201]
[1738801354012,1.4691,198.84,198.78,0.03423201]
[1738801354407,5.029,198.84,198.78,0.03423201]
[1738801355109,27.44958817,198.89,198.78,0.03423201]
[1738801356306,5.0284,198.86,198.78,0.03423201]
[1738801356512,27.44958817,198.89,198.78,0.03423201]
[1738801357311,5.0296,198.81,198.78,0.03423201]
[1738801357713,22.05748817,198.85,198.78,0.03423201]
[1738801358816,5.0301,198.79,198.78,0.03423201]
[1738801359114,22.05748817,198.81,198.66,22.05748817]
[1738801359710,5.0309,198.76,198.7,5.0324]
[1738801359906,22.05748817,198.81,198.66,22.05748817]
[1738801360516,0.03568425,198.75,198.72,0.03399164]
[1738801361316,0.03568425,198.75,198.72,5.06579164]
[1738801362318,0.03568425,198.75,198.72,0.03399164]
[1738801362719,0.03568425,198.75,198.74,5.0314]
[1738801363720,0.03568425,198.75,198.73,5.0316]
[1738801364312,5.0296,198.82,198.72,0.03399164]
[1738801364517,3.92,198.88,198.7,22.05748817]
[1738801365418,27.44958817,198.89,198.76,5.0307]
[1738801365622,27.44958817,198.89,198.77,0.0323328]
[1738801365924,5.0293,198.83,198.76,5.0307]
[1738801366117,23.52958817,198.89,198.81,0.03507856]
[1738801366324,23.52958817,198.89,198.7,22.05748817]
[1738801366523,23.52958817,198.89,198.83,0.03759293]
[1738801366723,23.52958817,198.89,198.7,22.05748817]
[1738801366922,23.52958817,198.89,198.84,0.0364762]
[1738801367224,5.0286,198.85,198.78,5.0302]
[1738801367620,5.0286,198.85,198.8,0.0372317]
[1738801368424,23.52958817,198.89,198.8,0.0372317]
[1738801369126,5.0292,198.83,198.8,0.0372317]
[1738801369526,23.52958817,198.89,198.8,0.0372317]
[1738801369725,5.0295,198.82,198.8,0.0372317]
[1738801370627,5.0296,198.81,198.66,22.05748817]
[1738801370828,22.05748817,198.82,198.65,6.85490275]
[1738801371219,5.0306,198.78,198.65,6.85490275]
[1738801371625,5.0306,198.78,198.64,8.34890275]
[1738801371825,5.0307,198.77,198.69,5.0326]
[1738801372025,5.0307,198.77,198.7,0.03870028]
[1738801372026,0.03377212,198.73,198.7,0.03870028]
[1738801377328,5.06547212,198.73,198.7,0.03870028]
[1738801378329,0.03377212,198.73,198.7,0.03870028]
[1738801379426,5.0319,198.72,198.7,0.03870028]
[1738801379820,0.03377212,198.73,198.7,0.03870028]
[1738801380222,5.0322,198.71,198.7,0.03870028]
[1738801380924,5.06547212,198.73,198.7,0.03870028]
[1738801381126,0.03377212,198.73,198.7,0.03870028]
[1738801381932,5.0322,198.71,198.7,0.03870028]
[1738801384122,5.0334,198.66,198.59,1.4716]
[1738801384630,13.68205135,198.71,198.59,6.5068]
[1738801385227,13.68205135,198.71,198.6,5.0349]
[1738801385533,0.03706434,198.67,198.63,0.03803675]
[1738801385825,5.0339,198.65,198.63,0.03803675]
[1738801386031,0.03706434,198.67,198.63,0.03803675]
[1738801386828,5.0339,198.64,198.63,0.03803675]
[1738801387728,5.0337,198.65,198.63,0.03803675]
[1738801387929,0.03706434,198.67,198.63,0.03803675]
[1738801388128,13.68205135,198.65,198.63,0.00496476]
[1738801388434,5.0339,198.64,198.63,0.00496476]
[1738801393135,5.0353,198.59,198.52,4.6961]
[1738801393330,13.68205135,198.64,198.52,4.6961]
[1738801393532,13.68205135,198.61,198.52,3.0971]
[1738801393732,5.0359,198.57,198.48,13.68205135]
[1738801393933,13.68205135,198.61,198.48,13.68205135]
[1738801394434,0.034799,198.56,198.53,0.03583598]
[1738801399036,5.070799,198.56,198.53,0.03583598]
[1738801400943,0.034799,198.56,198.53,0.03583598]
[1738801404448,5.070899,198.56,198.53,0.03583598]
[1738801405346,0.034799,198.56,198.53,0.03583598]
[1738801406951,0.034799,198.56,198.54,5.0364]
[1738801408352,0.034799,198.56,198.53,0.03583598]
[1738801409745,0.034799,198.56,198.53,5.07253598]
[1738801411151,0.034799,198.56,198.53,0.03583598]
[1738801412450,0.034799,198.56,198.54,5.0364]
[1738801412647,0.034799,198.56,198.53,0.03583598]
[1738801413649,13.68205135,198.61,198.53,0.03583598]
[1738801414252,5.0355,198.58,198.53,5.07253598]
[1738801414650,13.80216085,198.58,198.53,5.07253598]
[1738801414953,0.03483747,198.57,198.53,0.03583598]
[1738801415653,0.03483747,198.57,198.53,5.07243598]
[1738801419249,8.76666085,198.56,198.53,0.03583598]
[1738801419555,8.76666085,198.54,198.53,0.03583598]
[1738801422554,13.80316085,198.54,198.53,0.03583598]
[1738801422760,118.0,198.53,198.42,6.85490275]
[1738801423058,8.76666085,198.44,198.39,82.55694389]
[1738801423265,8.76666085,198.41,198.27,23.63014401]
[1738801423569,103.64,198.43,198.27,23.63014401]
[1738801423570,8.76666085,198.28,198.27,23.63014401]
[1738801423766,8.76666085,198.28,198.17,4.6331]
[1738801423965,8.76666085,198.28,198.2,5.0449]
[1738801424164,8.76666085,198.28,198.25,0.03350255]
[1738801424567,0.03185931,198.29,198.25,0.03350255]
[1738801425268,188.88508328,198.27,198.25,0.03350255]
[1738801426467,175.142759,198.27,198.25,0.03350255]
[1738801426661,49.30315447,198.26,198.25,0.03350255]
[1738801426869,63.04547875,198.26,198.25,0.03350255]
[1738801427170,63.04547875,198.26,198.06,13.74232428]
[1738801427367,13.74232428,198.18,198.13,1.6055]
[1738801427766,13.74232428,198.15,198.13,1.6055]
[1738801427971,13.74232428,198.15,198.06,2.91518415]
[1738801428371,13.74232428,198.15,198.12,0.0339037]
[1738801428872,0.03307332,198.16,198.12,0.0339037]
[1738801429068,49.30315447,198.14,198.12,0.0339037]
[1738801429268,49.30315447,198.14,198.03,13.74232428]
[1738801429765,49.30315447,198.14,198.06,13.74232428]
[1738801429967,49.30315447,198.14,198.09,13.74232428]
[1738801430270,49.30315447,198.14,198.12,13.74232428]
[1738801430473,0.03717452,198.13,198.12,13.74232428]
[1738801430662,230.51361599,198.13,198.12,18.78932428]
[1738801430868,207.59841599,198.13,198.12,10.60365822]
[1738801431069,205.07801599,198.13,198.12,10.60365822]
[1738801431770,20.62324007,198.17,198.12,10.60365822]
[1738801432074,0.03487751,198.14,198.12,10.60365822]
[1738801432275,0.03487751,198.14,198.13,0.03552019]
[1738801433275,20.62324007,198.17,198.14,5.0466]
[1738801433574,20.62324007,198.17,198.13,0.03552019]
[1738801434176,20.62324007,198.17,198.15,5.0462]
[1738801435171,0.03547021,198.18,198.14,21.99628426]
[1738801435375,0.03547021,198.18,198.17,5.0459]
[1738801436178,7.021e-05,198.18,198.17,5.0459]
[1738801437874,1.557,198.29,198.24,5.0441]
[1738801438179,5.0425,198.31,198.18,21.99628426]
[1738801438476,5.0425,198.31,198.25,5.0437]
[1738801439075,0.03616608,198.3,198.26,0.03621527]
[1738801439375,5.0421,198.32,198.22,21.99628426]
[1738801439678,0.03220611,198.3,198.26,0.03599472]
[1738801439877,0.03220611,198.3,198.26,5.07949472]
[1738801440072,0.03220611,198.3,198.26,0.03599472]
[1738801441678,0.03220611,198.3,198.29,5.0428]
[1738801441877,0.03220611,198.3,198.26,0.03599472]
[1738801443376,0.03220611,198.3,198.26,5.07959472]
[1738801443772,0.03220611,198.3,198.26,0.03599472]
[1738801444783,0.03220611,198.3,198.29,5.0428]
[1738801445177,6.11e-06,198.3,198.29,5.0428]
[1738801447880,201.98328426,198.5,198.37,5.0408]
[1738801448177,3.92,198.46,198.32,21.99628426]
[1738801448377,5.0392,198.44,198.38,5.0405]
[1738801448677,3.92,198.46,198.38,5.0405]
[1738801448881,3.92,198.46,198.4,5.04]
[1738801449081,0.03607535,198.44,198.4,5.07434559]
[1738801449784,0.03607535,198.44,198.41,5.0397]
[1738801450483,0.03607535,198.44,198.43,5.0393]
[1738801454785,7.535e-05,198.44,198.43,5.0393]
[1738801455085,3.0109,198.53,198.49,5.0375]
[1738801455285,3.0109,198.53,198.45,13.7078563]
[1738801455887,3.0109,198.53,198.49,5.0377]
[1738801456288,3.0109,198.53,198.49,5.07631209]
[1738801456490,3.0109,198.53,198.49,0.03861209]
[1738801456792,248.69016317,198.64,198.49,0.03861209]
[1738801457083,3.0303,198.59,198.48,13.7078563]
[1738801457589,5.0355,198.58,198.54,0.03839606]
[1738801457790,3.0303,198.59,198.54,0.03839606]
[1738801460188,3.0303,198.59,198.56,5.0358]
[1738801460585,3.0303,198.59,198.54,0.03839606]
[1738801461694,13.7078563,198.58,198.45,13.7078563]
[1738801461884,5.0367,198.54,198.44,5.0388]
[1738801462088,13.7078563,198.55,198.42,13.7078563]
[1738801462293,3.0303,198.59,198.45,13.7078563]
[1738801462595,13.7078563,198.58,198.42,13.7078563]
[1738801462790,0.0369777,198.54,198.5,0.03496272]
[1738801462985,5.0368,198.53,198.48,5.0377]
[1738801463194,13.7078563,198.58,198.42,13.7078563]
[1738801463596,13.7078563,198.55,198.42,13.7078563]
[1738801464088,0.03212023,198.5,198.47,0.03428398]
[1738801465993,5.06972023,198.5,198.47,0.03428398]
[1738801466392,0.03212023,198.5,198.47,0.03428398]
[1738801466694,5.038,198.48,198.43,5.0392]
[1738801466895,1.6188,198.49,198.39,13.7078563]
[1738801467400,15.3266563,198.49,198.39,5.0401]
[1738801467698,5.039,198.45,198.38,5.0405]
[1738801467893,0.0375233,198.46,198.42,0.03801394]
[1738801468195,1.5225,198.44,198.42,0.03801394]
[1738801469496,0.0375233,198.46,198.42,0.03801394]
[1738801470503,0.0375233,198.46,198.44,5.039]
[1738801470997,0.0375233,198.46,198.42,0.03801394]
[1738801471199,0.0375233,198.46,198.43,5.0393]
[1738801473499,0.0375233,198.46,198.45,5.0388]
[1738801474203,0.0375233,198.46,198.42,0.03801394]
[1738801474500,0.0375233,198.46,198.43,5.039]
[1738801476103,0.0375233,198.46,198.44,5.0389]
[1738801476303,0.0375233,198.46,198.42,0.03801394]
[1738801478304,0.0375233,198.46,198.42,5.07731394]
[1738801478706,0.0375233,198.46,198.42,0.03801394]
[1738801479707,0.0375233,198.46,198.45,5.0388]
[1738801481107,0.0375233,198.46,198.42,0.03801394]
[1738801483106,0.0375233,198.46,198.45,5.0388]
[1738801485414,0.0375233,198.46,198.44,5.039]
[1738801485914,0.0375233,198.46,198.42,0.03801394]
[1738801486115,0.0375233,198.46,198.43,5.0392]
[1738801486316,0.0375233,198.46,198.42,0.03801394]
[1738801487319,5.0760233,198.46,198.42,0.03801394]
[1738801487713,5.0391,198.44,198.38,5.0403]
[1738801488110,1.5182,198.48,198.38,5.0403]
[1738801488515,5.0385,198.47,198.33,21.93607864]
[1738801489012,0.03816167,198.42,198.38,0.03651577]
[1738801489319,0.03816167,198.42,198.39,5.0401]
[1738801489917,0.03816167,198.42,198.41,5.0398]
[1738801492820,0.03816167,198.42,198.38,5.07701577]
[1738801493816,0.03816167,198.42,198.38,0.03651577]
[1738801494523,5.07776167,198.42,198.38,0.03651577]
[1738801496118,0.03816167,198.42,198.31,13.71322612]
[1738801496321,13.71322612,198.42,198.31,13.71322612]
[1738801496514,1.5283,198.41,198.28,13.71322612]
[1738801496920,13.71322612,198.39,198.25,13.71322612]
[1738801497119,5.0415,198.34,198.28,5.0429]
[1738801497320,13.71322612,198.39,198.28,5.0429]
[1738801497612,0.03450947,198.34,198.3,0.03256606]
[1738801498218,0.03450947,198.34,198.31,5.0421]
[1738801498720,0.03450947,198.34,198.33,5.0418]
[1738801499823,9.47e-06,198.34,198.33,5.0418]
[1738801502024,1.5725,198.44,198.31,13.71322612]
[1738801502215,1.5725,198.44,198.38,5.0405]
[1738801502523,1.5725,198.44,198.35,13.71322612]
[1738801503023,1.5725,198.44,198.32,13.71322612]
[1738801503223,1.5725,198.44,198.38,0.03783445]
[1738801503425,0.03672311,198.41,198.38,0.03783445]
[1738801509730,5.0403,198.39,198.38,0.03783445]
[1738801510121,0.03672311,198.41,198.38,0.03783445]
[1738801510824,5.0402,198.4,198.38,0.03783445]
[1738801511025,0.03672311,198.41,198.38,0.03783445]
[1738801511228,13.71322612,198.39,198.26,13.71322612]
[1738801511825,13.71322612,198.39,198.23,13.71322612]
[1738801512028,13.71322612,198.36,198.23,13.71322612]
[1738801512227,3.0421,198.35,198.23,13.71322612]
[1738801512429,0.03673888,198.31,198.28,0.03483441]
[1738801513531,5.07903888,198.31,198.28,0.03483441]
[1738801514231,0.03673888,198.31,198.28,0.03483441]
[1738801516828,5.0427,198.3,198.28,0.03483441]
[1738801518131,0.03673888,198.31,198.28,0.03483441]
[1738801518930,5.07903888,198.31,198.28,0.03483441]
[1738801520832,0.03673888,198.31,198.28,0.03483441]
[1738801522534,0.03673888,198.31,198.3,5.0426]
[1738801523634,3.888e-05,198.31,198.3,5.0426]
[1738801525432,3.888e-05,198.31,198.29,5.0428]
[1738801526235,3.888e-05,198.31,198.3,5.0426]
[1738801530235,3.888e-05,198.31,198.28,0.03483441]
[1738801531937,3.888e-05,198.31,198.2,13.71322612]
[1738801532740,5.0427,198.3,198.25,5.0438]
[1738801532936,5.0427,198.3,198.26,0.03595409]
[1738801534640,18.755565,198.31,198.26,0.03595409]
[1738801534841,5.04233888,198.31,198.26,0.03595409]
[1738801536233,3.888e-05,198.31,198.26,0.03595409]
[1738801537045,3.888e-05,198.31,198.27,5.0432]
[1738801537243,3.888e-05,198.31,198.26,0.03595409]
[1738801537843,5.04243888,198.31,198.26,0.03595409]
[1738801538038,3.888e-05,198.31,198.26,0.03595409]
[1738801539835,3.888e-05,198.31,198.28,5.043]
[1738801546545,3.888e-05,198.31,198.26,5.07955409]
[1738801547845,3.888e-05,198.31,198.27,5.0433]
[1738801552142,3.888e-05,198.31,198.26,0.03595409]
[1738801552348,13.713265,198.31,198.26,0.03595409]
[1738801552649,8.79355688,198.28,198.26,0.03595409]
[1738801552948,8.79355688,198.3,198.26,0.03595409]
[1738801553847,13.83615688,198.3,198.26,0.03595409]
[1738801555552,8.79355688,198.3,198.26,0.03595409]
[1738801555846,5.0428,198.29,198.26,0.03595409]
[1738801558552,13.83615688,198.3,198.26,0.03595409]
[1738801558851,3.888e-05,198.31,198.27,8.79355688]
[1738801559839,3.888e-05,198.31,198.28,5.043]
[1738801560241,3.888e-05,198.31,198.27,8.79355688]
[1738801561848,3.888e-05,198.31,198.27,13.83685688]
[1738801563952,3.888e-05,198.31,198.27,5.0433]
[1738801564153,5.04243888,198.31,198.26,5.07955409]
[1738801564349,8.79355688,198.3,198.26,0.03595409]
[1738801564851,5.0429,198.29,198.26,0.03595409]
[1738801566245,13.83615688,198.3,198.26,0.03595409]
[1738801566458,3.888e-05,198.31,198.27,8.79355688]
[1738801566752,20.62327895,198.31,198.29,8.79355688]
[1738801566952,20.62327895,198.31,198.3,5.0426]
[1738801568252,20.62327895,198.31,198.29,13.83635688]
[1738801569253,20.62327895,198.31,198.3,5.0426]
[1738801569749,20.62324007,198.36,198.35,5.0413]
[1738801571049,20.62324007,198.36,198.34,0.03193229]